[Event "44th Chess Olympiad Women 2022"]
[Site "Chennai"]
[Date "2022.07.31"]
[Round "3.30"]
[White "Smith, Olivia"]
[Black "Goossens, Hanne"]
[Result "1/2-1/2"]
[WhiteElo "2038"]
[BlackElo "2159"]
[Annotator "RC"]
[PlyCount "118"]
[EventDate "2022.??.??"]
[TimeControl "60"]

1. e4 {[%emt 0:00:03]} c5 {[%emt 0:00:12]} 2. Nf3 {[%emt 0:00:06]} d6 {[%emt 0:
00:00]} 3. d4 {[%emt 0:00:11]} cxd4 {[%emt 0:00:10]} 4. Nxd4 {[%emt 0:00:08]}
Nf6 {[%emt 0:00:07]} 5. Nc3 {[%emt 0:00:28]} Nc6 {[%emt 0:01:41]} 6. Bg5 {
[%emt 0:00:51]} e6 {[%emt 0:00:56]} 7. Qd2 {[%emt 0:00:52]} a6 {[%emt 0:00:17]}
8. O-O-O {[%emt 0:00:42]} Bd7 {[%emt 0:00:18]} 9. f4 {[%emt 0:02:27]} Be7 {
[%emt 0:00:29]} 10. Kb1 {[%emt 0:01:59]} h6 {[%emt 0:05:02]} 11. Bh4 {[%emt 0:
00:00]} b5 {[%emt 0:01:25]} 12. Bxf6 {[%emt 0:00:56]} Bxf6 {[%emt 0:04:00]} 13.
Nxc6 {[%emt 0:05:22]} Bxc6 {[%emt 0:00:10]} 14. Qxd6 {[%emt 0:10:56]} Qxd6 {
[%emt 0:12:58]} 15. Rxd6 {[%emt 0:00:11]} Rc8 {[%emt 0:04:03]} 16. e5 {[%emt 0:
00:00]} Be7 {[%emt 0:00:28]} 17. Rd1 {[%emt 0:06:38]} g5 {[%emt 0:03:33]} 18.
Bd3 {[%emt 0:09:36]} Bxg2 {[%emt 0:11:43]} 19. Rhg1 {[%emt 0:00:28]} Bb7 {
[%emt 0:08:44]} 20. f5 {[%emt 0:02:07]} Bc5 {[%emt 0:08:50]} 21. Rgf1 {[%emt 0:
00:00]} Bg2 {[%emt 0:03:13]} 22. Rfe1 {[%emt 0:05:45]} Bf3 {[%emt 0:04:05]} 23.
Rd2 {[%emt 0:04:01]} Bb4 {[%emt 0:01:49]} 24. fxe6 {[%emt 0:05:04]} fxe6 {
[%emt 0:03:57]} 25. Re3 {[%emt 0:04:46]} Bxc3 {[%emt 0:04:58]} 26. bxc3 {
[%emt 0:01:02]} g4 {[%emt 0:02:34]} 27. Be4 {[%emt 0:02:02]} Rf8 {[%emt 0:00:
00]} 28. Rd6 {[%emt 0:01:22]} Rc4 {[%emt 0:12:40]} 29. Rxe6+ {[%emt 0:03:00]}
Kd7 {[%emt 0:02:46]} 30. Rd6+ {[%emt 0:00:34]} Ke7 {[%emt 0:00:37]} 31. Bd3 {
[%emt 0:02:40]} Rxc3 {[%emt 0:00:52]} 32. Rxa6 {[%emt 0:02:52]} Rc6 {[%emt 0:
00:00]} 33. Ra7+ {[%emt 0:06:44]} Ke6 {[%emt 0:00:14]} 34. Bxb5 {[%emt 0:01:32]
} Rb8 {[%emt 0:01:15]} 35. a4 {[%emt 0:00:55]} Rc5 {[%emt 0:00:19]} 36. Rh7 {
[%emt 0:03:14]} Kf5 {[%emt 0:00:41]} 37. Rf7+ {[%emt 0:04:08]} Kg5 {[%emt 0:00:
00]} 38. e6 {[%emt 0:00:27]} Bd5 {[%emt 0:00:32]} 39. Re5+ {[%emt 0:01:12]} Kg6
{[%emt 0:00:12]} 40. Kc1 {[%emt 0:01:30]} Bxe6 {[%emt 0:00:47]} 41. Rxc5 {
[%emt 0:30:43]} Bxf7 {[%emt 0:06:01]} 42. a5 {[%emt 0:00:00]} Ra8 {[%emt 0:00:
00]} 43. a6 {[%emt 0:00:00]} Ra7 {[%emt 0:00:19]} 44. Kd2 {[%emt 0:00:00]} h5 {
[%emt 0:03:05]} 45. Ke3 {[%emt 0:00:00]} Kf6 {[%emt 0:04:48]} 46. Kf4 {[%emt 0:
00:00]} Ke6 {[%emt 0:01:10]} 47. Ke4 {[%emt 0:00:00]} Kf6 {[%emt 0:02:57]} 48.
Kd4 {[%emt 0:00:00]} h4 {[%emt 0:00:41]} 49. Ke3 {[%emt 0:00:00]} Be6 {[%emt 0:
00:00]} 50. Rh5 {[%emt 0:00:00]} g3 {[%emt 0:03:21]} 51. hxg3 {[%emt 0:00:00]}
hxg3 {[%emt 0:01:23]} 52. Kf3 {[%emt 0:00:00]} Bg4+ {[%emt 0:04:01]} 53. Kxg4 {
[%emt 0:00:00]} Rg7+ {[%emt 0:00:41]} 54. Kf4 {[%emt 0:00:00]} g2 {[%emt 0:00:
00]} 55. Rf5+ {[%emt 0:00:00]} Ke6 {[%emt 0:01:37]} 56. Re5+ {[%emt 0:00:00]}
Kd6 {[%emt 0:00:19]} 57. Re1 {[%emt 0:00:00]} g1=Q {[%emt 0:00:32]} 58. Rxg1 {
[%emt 0:00:00]} Rxg1 {[%emt 0:00:04]} 59. Bd3 {[%emt 0:00:00]} Rg6 {[%emt 0:00:
00]} 1/2-1/2

[Event "44th Chess Olympiad Women 2022"]
[Site "Chennai"]
[Date "2022.07.31"]
[Round "3.30"]
[White "Vanduyfhuys, Daria"]
[Black "Chong, Kimberly"]
[Result "1-0"]
[WhiteElo "2094"]
[BlackElo "1741"]
[Annotator "NA RC"]
[PlyCount "97"]
[EventDate "2022.??.??"]
[TimeControl "60"]

1. d4 {[%emt 0:00:03]} Nf6 {[%emt 0:00:11]} 2. c4 {[%emt 0:00:08]} c5 {[%emt 0:
00:00]} 3. d5 {[%emt 0:00:30]} b5 {[%emt 0:00:11]} 4. cxb5 {[%emt 0:01:07]} a6
{[%emt 0:00:41]} 5. e3 {[%emt 0:02:28]} g6 {[%emt 0:05:18]} 6. Nc3 {[%emt 0:00:
00]} Bg7 {[%emt 0:01:09]} 7. Nf3 {[%emt 0:01:48]} d6 {[%emt 0:01:09]} 8. bxa6 {
[%emt 0:03:42]} O-O {[%emt 0:01:58]} 9. Be2 {[%emt 0:01:40]} Bxa6 {[%emt 0:00:
00]} 10. O-O {[%emt 0:01:06]} Nbd7 {[%emt 0:07:34]} 11. e4 {[%emt 0:03:32]} Ne8
{[%emt 0:13:11]} 12. Bf4 {[%emt 0:04:31]} Qa5 {[%emt 0:05:39]} 13. Bxa6 {
[%emt 0:04:08]} Rxa6 {[%emt 0:07:15]} 14. Qc2 {[%emt 0:05:14]} Nc7 {[%emt 0:00:
00]} 15. Rfe1 {[%emt 0:01:21]} Nb5 {[%emt 0:06:23]} 16. Bd2 {[%emt 0:12:02]}
Rb8 {[%emt 0:06:57]} 17. Nd1 {[%emt 0:07:32]} Qb6 {[%emt 0:01:58]} 18. a4 {
[%emt 0:03:25]} Nd4 {[%emt 0:02:38]} 19. Nxd4 {[%emt 0:00:08]} Bxd4 {[%emt 0:
00:00]} 20. Bc3 {[%emt 0:08:22]} Be5 {[%emt 0:06:52]} 21. Ne3 {[%emt 0:03:42]}
Qb3 {[%emt 0:02:53]} 22. Rec1 {[%emt 0:05:01]} Qxc2 {[%emt 0:04:52]} 23. Rxc2 {
[%emt 0:00:17]} Bxc3 {[%emt 0:01:41]} 24. bxc3 {[%emt 0:00:17]} Rba8 {[%emt 0:
00:00]} 25. Rca2 {[%emt 0:00:50]} Rb8 {[%emt 0:00:27]} 26. Kf1 {[%emt 0:01:12]}
Rb3 {[%emt 0:00:47]} 27. Ra3 {[%emt 0:01:36]} Rxa3 {[%emt 0:00:58]} 28. Rxa3 {
[%emt 0:00:05]} Kf8 {[%emt 0:01:51]} 29. Ke2 {[%emt 0:01:37]} Ke8 {[%emt 0:00:
00]} 30. Nc4 {[%emt 0:01:20]} Nb6 {[%emt 0:01:07]} 31. Nxb6 {[%emt 0:00:21]}
Rxb6 {[%emt 0:00:03]} 32. a5 {[%emt 0:00:56]} Ra6 {[%emt 0:01:00]} 33. Kd3 {
[%emt 0:00:22]} Kd7 {[%emt 0:00:06]} 34. Kc4 {[%emt 0:01:23]} Kc7 {[%emt 0:00:
00]} 35. f4 {[%emt 0:02:41]} f6 {[%emt 0:01:58]} 36. Ra1 {[%emt 0:01:25]} Ra8 {
[%emt 0:01:49]} 37. h3 {[%emt 0:06:47]} h5 {[%emt 0:01:45]} 38. g3 {[%emt 0:00:
00]} Kb7 {[%emt 0:02:06]} 39. Kb5 {[%emt 0:02:48]} Kc7 {[%emt 0:00:41]} 40. e5
{[%emt 0:07:33]} Rb8+ {[%emt 0:01:23]} 41. Kc4 {[%emt 0:30:58]} fxe5 {[%emt 0:
00:00]} 42. fxe5 {[%emt 0:00:00]} Rf8 {[%emt 0:00:52]} 43. exd6+ {[%emt 0:00:
00]} exd6 {[%emt 0:02:50]} 44. h4 {[%emt 0:00:00]} Kb7 {[%emt 0:04:15]} 45.
Rb1+ {[%emt 0:00:00]} Kc7 {[%emt 0:01:18]} 46. a6 {[%emt 0:00:00]} Ra8 {
[%emt 0:01:49]} 47. Rb7+ {[%emt 0:00:00]} Kd8 {[%emt 0:01:17]} 48. Kb5 {
[%emt 0:00:00]} Kc8 {[%emt 0:09:23]} 49. Rg7 {[%emt 0:00:00]} 1-0

[Event "44th Chess Olympiad Women 2022"]
[Site "Chennai"]
[Date "2022.07.31"]
[Round "3.31"]
[White "Maklakova, Nellija"]
[Black "Castillo Beitia, Ashley Alexandra"]
[Result "1/2-1/2"]
[WhiteElo "1819"]
[BlackElo "1587"]
[Annotator "NA RC"]
[PlyCount "120"]
[EventDate "2022.??.??"]
[TimeControl "60"]

1. c4 {[%emt 0:00:18]} c6 {[%emt 0:00:24]} 2. d4 {[%emt 0:01:15]} d5 {[%emt 0:
00:00]} 3. e3 {[%emt 0:00:10]} Nf6 {[%emt 0:04:53]} 4. Nf3 {[%emt 0:01:02]} Bg4
{[%emt 0:01:08]} 5. Nc3 {[%emt 0:01:40]} e6 {[%emt 0:01:30]} 6. h3 {[%emt 0:00:
00]} Bxf3 {[%emt 0:11:11]} 7. gxf3 {[%emt 0:03:54]} Nbd7 {[%emt 0:03:49]} 8.
Bd2 {[%emt 0:00:52]} Bd6 {[%emt 0:16:44]} 9. c5 {[%emt 0:03:21]} Bc7 {[%emt 0:
00:00]} 10. Rg1 {[%emt 0:01:07]} g6 {[%emt 0:05:58]} 11. f4 {[%emt 0:15:21]} b6
{[%emt 0:07:31]} 12. Qa4 {[%emt 0:04:34]} bxc5 {[%emt 0:05:02]} 13. Qxc6 {
[%emt 0:03:46]} cxd4 {[%emt 0:05:22]} 14. Nb5 {[%emt 0:01:48]} Ba5 {[%emt 0:00:
00]} 15. b4 {[%emt 0:03:59]} dxe3 {[%emt 0:00:32]} 16. fxe3 {[%emt 0:00:15]}
Bb6 {[%emt 0:01:34]} 17. Nd6+ {[%emt 0:01:49]} Kf8 {[%emt 0:02:41]} 18. Rc1 {
[%emt 0:02:57]} Kg7 {[%emt 0:03:56]} 19. Ba6 {[%emt 0:02:54]} Ne8 {[%emt 0:00:
00]} 20. Nxe8+ {[%emt 0:13:40]} Rxe8 {[%emt 0:02:06]} 21. Ke2 {[%emt 0:00:38]}
Nf6 {[%emt 0:01:57]} 22. a4 {[%emt 0:02:58]} Ne4 {[%emt 0:04:14]} 23. a5 {
[%emt 0:11:00]} Qh4 {[%emt 0:03:28]} 24. Rcf1 {[%emt 0:06:23]} Ng3+ {[%emt 0:
00:00]} 25. Rxg3 {[%emt 0:00:06]} Qxg3 {[%emt 0:00:07]} 26. axb6 {[%emt 0:00:
00]} axb6 {[%emt 0:00:16]} 27. Bc3+ {[%emt 0:01:08]} Kg8 {[%emt 0:02:36]} 28.
Qxb6 {[%emt 0:00:20]} Qg2+ {[%emt 0:00:27]} 29. Ke1 {[%emt 0:03:43]} Qe4 {
[%emt 0:01:11]} 30. b5 {[%emt 0:01:38]} Reb8 {[%emt 0:01:40]} 31. Qd4 {[%emt 0:
00:00]} Qxd4 {[%emt 0:00:29]} 32. Bxd4 {[%emt 0:00:06]} Kf8 {[%emt 0:00:27]}
33. Kd2 {[%emt 0:00:29]} Ke7 {[%emt 0:00:22]} 34. Rc1 {[%emt 0:00:11]} Kd7 {
[%emt 0:00:13]} 35. Be5 {[%emt 0:00:11]} Rb6 {[%emt 0:00:39]} 36. Rc7+ {
[%emt 0:01:41]} Ke8 {[%emt 0:00:24]} 37. Bd4 {[%emt 0:01:33]} Rbb8 {[%emt 0:00:
00]} 38. Kd3 {[%emt 0:01:23]} Rd8 {[%emt 0:00:35]} 39. Bc5 {[%emt 0:00:26]} Rd7
{[%emt 0:00:08]} 40. Rc8+ {[%emt 0:01:15]} Rxc8 {[%emt 0:00:10]} 41. Bxc8 {
[%emt 0:30:01]} Rc7 {[%emt 0:30:10]} 42. Bd6 {[%emt 0:00:00]} Rxc8 {[%emt 0:00:
00]} 43. b6 {[%emt 0:00:00]} Kd7 {[%emt 0:00:00]} 44. b7 {[%emt 0:00:00]} Rd8 {
[%emt 0:00:00]} 45. b8=Q {[%emt 0:00:06]} Rxb8 {[%emt 0:00:00]} 46. Bxb8 {
[%emt 0:00:00]} f6 {[%emt 0:00:00]} 47. Kd4 {[%emt 0:00:00]} Kc6 {[%emt 0:00:
00]} 48. h4 {[%emt 0:00:00]} h6 {[%emt 0:00:00]} 49. Kd3 {[%emt 0:00:00]} Kd7 {
[%emt 0:00:00]} 50. Ba7 {[%emt 0:00:00]} e5 {[%emt 0:00:00]} 51. Bc5 {[%emt 0:
00:00]} exf4 {[%emt 0:00:00]} 52. exf4 {[%emt 0:00:00]} Ke6 {[%emt 0:00:00]}
53. Ke3 {[%emt 0:00:00]} g5 {[%emt 0:00:00]} 54. h5 {[%emt 0:00:00]} Kf5 {
[%emt 0:00:00]} 55. Kf3 {[%emt 0:00:00]} gxf4 {[%emt 0:00:00]} 56. Bd6 {
[%emt 0:00:00]} Kg5 {[%emt 0:00:00]} 57. Bxf4+ {[%emt 0:00:00]} Kxh5 {[%emt 0:
00:00]} 58. Be3 {[%emt 0:00:00]} Kg6 {[%emt 0:00:00]} 59. Kf4 {[%emt 0:00:00]}
h5 {[%emt 0:00:00]} 60. Bd4 {[%emt 0:00:00]} h4 {[%emt 0:00:00]} 1/2-1/2

[Event "44th Chess Olympiad Women 2022"]
[Site "Chennai"]
[Date "2022.07.31"]
[Round "3.31"]
[White "Munoz Henriquez, Alba Esther"]
[Black "Jansone, Melanija Luize"]
[Result "1-0"]
[WhiteElo "1588"]
[BlackElo "1584"]
[Annotator "NA RC"]
[PlyCount "119"]
[EventDate "2022.??.??"]
[TimeControl "60"]

1. e4 {[%emt 0:00:04]} d6 {[%emt 0:00:06]} 2. d4 {[%emt 0:00:09]} Nf6 {[%emt 0:
00:00]} 3. Nc3 {[%emt 0:00:16]} g6 {[%emt 0:01:16]} 4. Bf4 {[%emt 0:00:28]} Bg7
{[%emt 0:00:58]} 5. Qd2 {[%emt 0:01:28]} c6 {[%emt 0:01:16]} 6. Bh6 {[%emt 0:
00:00]} Bxh6 {[%emt 0:01:52]} 7. Qxh6 {[%emt 0:00:08]} Qa5 {[%emt 0:00:29]} 8.
Bd3 {[%emt 0:05:32]} b5 {[%emt 0:04:33]} 9. e5 {[%emt 0:22:33]} dxe5 {[%emt 0:
00:00]} 10. dxe5 {[%emt 0:00:32]} b4 {[%emt 0:00:49]} 11. exf6 {[%emt 0:11:15]}
bxc3 {[%emt 0:00:31]} 12. b3 {[%emt 0:01:41]} Qe5+ {[%emt 0:01:54]} 13. Ne2 {
[%emt 0:01:34]} Qxf6 {[%emt 0:01:26]} 14. O-O {[%emt 0:01:02]} Ba6 {[%emt 0:00:
00]} 15. Rad1 {[%emt 0:04:23]} Bxd3 {[%emt 0:06:03]} 16. Rxd3 {[%emt 0:00:28]}
Nd7 {[%emt 0:02:06]} 17. Rxc3 {[%emt 0:08:24]} Ne5 {[%emt 0:03:18]} 18. h3 {
[%emt 0:04:21]} Rd8 {[%emt 0:03:22]} 19. Re1 {[%emt 0:11:43]} Rd5 {[%emt 0:00:
00]} 20. Re3 {[%emt 0:04:08]} Rc5 {[%emt 0:11:21]} 21. c4 {[%emt 0:03:30]} Nd7
{[%emt 0:04:08]} 22. Ng3 {[%emt 0:02:38]} Re5 {[%emt 0:02:01]} 23. Ne4 {
[%emt 0:01:36]} Qf5 {[%emt 0:04:32]} 24. Qg7 {[%emt 0:01:34]} Rf8 {[%emt 0:00:
00]} 25. Qxh7 {[%emt 0:03:53]} Re6 {[%emt 0:02:38]} 26. Qh4 {[%emt 0:00:54]} a6
{[%emt 0:03:25]} 27. b4 {[%emt 0:01:34]} Re5 {[%emt 0:01:44]} 28. a3 {[%emt 0:
00:00]} g5 {[%emt 0:00:58]} 29. Qg3 {[%emt 0:00:46]} Rg8 {[%emt 0:00:30]} 30.
Nc5 {[%emt 0:02:39]} Rxe3 {[%emt 0:00:52]} 31. Qxe3 {[%emt 0:00:35]} e5 {
[%emt 0:00:39]} 32. Nxd7 {[%emt 0:00:30]} Kxd7 {[%emt 0:00:27]} 33. Rd1+ {
[%emt 0:00:38]} Ke6 {[%emt 0:00:25]} 34. Qc5 {[%emt 0:00:12]} Kf6 {[%emt 0:00:
00]} 35. Qxc6+ {[%emt 0:00:36]} Kg7 {[%emt 0:00:17]} 36. Qxa6 {[%emt 0:00:38]}
Qc2 {[%emt 0:00:27]} 37. Qd6 {[%emt 0:00:34]} Re8 {[%emt 0:00:23]} 38. c5 {
[%emt 0:00:37]} Re6 {[%emt 0:00:23]} 39. Qd2 {[%emt 0:00:34]} Qf5 {[%emt 0:00:
00]} 40. b5 {[%emt 0:00:34]} g4 {[%emt 0:00:26]} 41. hxg4 {[%emt 0:31:03]} Qxg4
{[%emt 0:30:12]} 42. Re1 {[%emt 0:01:11]} Qh4 {[%emt 0:01:11]} 43. c6 {[%emt 0:
00:00]} Rh6 {[%emt 0:00:21]} 44. f3 {[%emt 0:00:00]} Qh1+ {[%emt 0:00:00]} 45.
Kf2 {[%emt 0:00:00]} Qh4+ {[%emt 0:00:00]} 46. Ke2 {[%emt 0:00:00]} Qc4+ {
[%emt 0:00:00]} 47. Kf2 {[%emt 0:00:00]} Qh4+ {[%emt 0:00:00]} 48. Kf1 {
[%emt 0:00:00]} Qh1+ {[%emt 0:00:00]} 49. Kf2 {[%emt 0:00:00]} Qh4+ {[%emt 0:
00:00]} 50. Ke2 {[%emt 0:00:00]} Qc4+ {[%emt 0:00:00]} 51. Qd3 {[%emt 0:00:00]}
Qa2+ {[%emt 0:00:00]} 52. Qd2 {[%emt 0:00:00]} Qc4+ {[%emt 0:00:00]} 53. Qd3 {
[%emt 0:00:00]} Qa2+ {[%emt 0:00:00]} 54. Ke3 {[%emt 0:00:00]} Qxg2 {[%emt 0:
00:00]} 55. Qf5 {[%emt 0:00:52]} Rg6 {[%emt 0:00:00]} 56. c7 {[%emt 0:01:49]}
Qb2 {[%emt 0:00:00]} 57. Qxg6+ {[%emt 0:00:40]} fxg6 {[%emt 0:00:00]} 58. c8=Q
{[%emt 0:00:10]} Qd4+ {[%emt 0:00:00]} 59. Ke2 {[%emt 0:00:19]} Qb2+ {[%emt 0:
00:00]} 60. Kf1 {[%emt 0:00:57]} 1-0

[Event "44th Chess Olympiad Women 2022"]
[Site "Chennai"]
[Date "2022.07.31"]
[Round "3.31"]
[White "Rogule, Laura"]
[Black "Chung Hurtado, Yaleika"]
[Result "1-0"]
[WhiteElo "2292"]
[BlackElo "1696"]
[Annotator "RC"]
[PlyCount "65"]
[EventDate "2022.??.??"]
[TimeControl "60"]

1. c4 {[%emt 0:00:07]} e5 {[%emt 0:00:35]} 2. Nc3 {[%emt 0:00:49]} Nf6 {
[%emt 0:00:11]} 3. g3 {[%emt 0:02:00]} d5 {[%emt 0:01:04]} 4. cxd5 {[%emt 0:00:
00]} Nxd5 {[%emt 0:00:12]} 5. Bg2 {[%emt 0:00:07]} Ne7 {[%emt 0:00:10]} 6. b4 {
[%emt 0:06:55]} a6 {[%emt 0:05:32]} 7. Nf3 {[%emt 0:05:14]} Nbc6 {[%emt 0:00:
00]} 8. a3 {[%emt 0:04:12]} g6 {[%emt 0:00:29]} 9. Bb2 {[%emt 0:02:55]} Bg7 {
[%emt 0:02:22]} 10. d3 {[%emt 0:03:48]} O-O {[%emt 0:02:06]} 11. O-O {[%emt 0:
00:00]} Rb8 {[%emt 0:05:24]} 12. Rc1 {[%emt 0:10:42]} Kh8 {[%emt 0:12:46]} 13.
e3 {[%emt 0:06:49]} f5 14. Qc2 {[%emt 0:22:49]} Be6 {[%emt 0:05:13]} 15. Rcd1 {
[%emt 0:13:09]} Bg8 {[%emt 0:07:21]} 16. Na4 {[%emt 0:08:11]} b6 {[%emt 0:00:
00]} 17. Rd2 {[%emt 0:01:40]} Qd6 {[%emt 0:01:43]} 18. Rc1 {[%emt 0:13:27]}
Rbc8 {[%emt 0:08:19]} 19. Ne1 {[%emt 0:00:00]} Nd8 20. Rdd1 {[%emt 0:04:46]}
Bd5 {[%emt 0:00:41]} 21. e4 {[%emt 0:00:00]} Bg8 {[%emt 0:32:38]} 22. Nf3 {
[%emt 0:00:00]} Ne6 {[%emt 0:02:01]} 23. Bc3 {[%emt 0:09:21]} f4 {[%emt 0:00:
00]} 24. Nb2 {[%emt 0:00:00]} b5 {[%emt 0:00:49]} 25. d4 {[%emt 0:00:00]} Nxd4
{[%emt 0:00:42]} 26. Bxd4 {[%emt 0:00:00]} exd4 {[%emt 0:00:20]} 27. e5 {
[%emt 0:00:00]} Bxe5 {[%emt 0:01:10]} 28. Nxe5 {[%emt 0:00:00]} Qxe5 {[%emt 0:
00:00]} 29. Nd3 {[%emt 0:00:00]} Qf5 {[%emt 0:00:35]} 30. Qb2 {[%emt 0:00:00]}
fxg3 {[%emt 0:00:59]} 31. Qxd4+ {[%emt 0:00:00]} Qf6 {[%emt 0:00:07]} 32. Qxf6+
{[%emt 0:00:00]} Rxf6 {[%emt 0:00:09]} 33. hxg3 {[%emt 0:00:00]} 1-0

[Event "44th Chess Olympiad Women 2022"]
[Site "Chennai"]
[Date "2022.07.31"]
[Round "3.31"]
[White "Vasquez Jaen, Lourdes Lorena"]
[Black "Ter-Avetisjana, Agnesa Stepania"]
[Result "1/2-1/2"]
[WhiteElo "1653"]
[BlackElo "1962"]
[Annotator "RC"]
[PlyCount "142"]
[EventDate "2022.??.??"]
[TimeControl "60"]

1. e4 {[%emt 0:00:15]} c6 {[%emt 0:00:07]} 2. d4 {[%emt 0:00:05]} d5 {[%emt 0:
00:00]} 3. Nc3 {[%emt 0:00:06]} dxe4 {[%emt 0:00:06]} 4. Nxe4 {[%emt 0:00:04]}
Bf5 {[%emt 0:00:11]} 5. Ng3 {[%emt 0:00:21]} Bg6 {[%emt 0:00:09]} 6. Nf3 {
[%emt 0:00:06]} Nd7 {[%emt 0:02:57]} 7. h4 {[%emt 0:06:42]} h6 {[%emt 0:00:14]}
8. h5 {[%emt 0:00:13]} Bh7 {[%emt 0:00:06]} 9. Bd3 {[%emt 0:00:13]} Bxd3 {
[%emt 0:00:26]} 10. Qxd3 {[%emt 0:00:02]} Ngf6 {[%emt 0:00:56]} 11. Bf4 {
[%emt 0:00:12]} e6 {[%emt 0:00:47]} 12. O-O-O {[%emt 0:03:40]} Qa5 {[%emt 0:00:
00]} 13. Kb1 {[%emt 0:02:19]} O-O-O {[%emt 0:01:33]} 14. Bd2 {[%emt 0:06:55]}
Qc7 {[%emt 0:00:51]} 15. Ne4 {[%emt 0:00:38]} Nxe4 {[%emt 0:02:38]} 16. Qxe4 {
[%emt 0:00:06]} Nf6 {[%emt 0:00:06]} 17. Qe2 {[%emt 0:00:16]} Rd5 {[%emt 0:00:
00]} 18. c4 {[%emt 0:19:10]} Rxh5 {[%emt 0:09:51]} 19. Rxh5 {[%emt 0:00:28]}
Nxh5 {[%emt 0:00:06]} 20. Ne5 {[%emt 0:00:06]} Nf6 {[%emt 0:03:10]} 21. Bf4 {
[%emt 0:00:22]} Rg8 {[%emt 0:06:03]} 22. d5 {[%emt 0:25:53]} Bd6 {[%emt 0:00:
00]} 23. dxe6 {[%emt 0:00:48]} fxe6 {[%emt 0:05:47]} 24. Nxc6 {[%emt 0:04:01]}
Qxc6 {[%emt 0:06:20]} 25. Qxe6+ {[%emt 0:00:37]} Qd7 {[%emt 0:00:08]} 26. Rxd6
{[%emt 0:03:32]} Qxe6 {[%emt 0:00:05]} 27. Rxe6 {[%emt 0:00:02]} Kd7 {[%emt 0:
00:00]} 28. Rd6+ {[%emt 0:02:01]} Ke7 {[%emt 0:00:01]} 29. Rd3 {[%emt 0:02:51]}
Rc8 {[%emt 0:02:12]} 30. b3 {[%emt 0:00:46]} Ke6 {[%emt 0:04:21]} 31. Be3 {
[%emt 0:03:38]} b6 {[%emt 0:04:02]} 32. Bd4 {[%emt 0:01:31]} Rc7 {[%emt 0:00:
00]} 33. Re3+ {[%emt 0:08:25]} Kf7 {[%emt 0:03:08]} 34. Rf3 {[%emt 0:02:59]}
Re7 {[%emt 0:01:06]} 35. Bxf6 {[%emt 0:05:39]} gxf6 {[%emt 0:00:01]} 36. Kb2 {
[%emt 0:00:35]} Re2+ {[%emt 0:00:14]} 37. Ka3 {[%emt 0:00:08]} Rc2 {[%emt 0:00:
00]} 38. b4 {[%emt 0:02:29]} Rxc4 {[%emt 0:00:10]} 39. Kb3 {[%emt 0:00:02]} Rg4
{[%emt 0:03:54]} 40. g3 {[%emt 0:00:19]} Rd4 {[%emt 0:02:00]} 41. Kc3 {[%emt 0:
00:00]} Rd1 {[%emt 0:34:43]} 42. Kc4 {[%emt 0:00:00]} Rd2 {[%emt 0:00:00]} 43.
a3 {[%emt 0:00:00]} a6 {[%emt 0:01:23]} 44. Kc3 {[%emt 0:00:00]} Re2 {[%emt 0:
00:00]} 45. Kd3 {[%emt 0:00:00]} Ra2 {[%emt 0:00:00]} 46. Ke4 {[%emt 0:00:00]}
Rd2 {[%emt 0:00:00]} 47. Ke3 {[%emt 0:00:00]} Rb2 {[%emt 0:00:00]} 48. Ke4 {
[%emt 0:00:00]} Kg6 {[%emt 0:00:00]} 49. Kd5 {[%emt 0:00:00]} a5 {[%emt 0:00:
00]} 50. bxa5 {[%emt 0:01:00]} bxa5 {[%emt 0:00:00]} 51. Ke6 {[%emt 0:04:10]}
f5 {[%emt 0:00:00]} 52. Kd5 {[%emt 0:00:40]} Kg5 {[%emt 0:01:02]} 53. Rf4 {
[%emt 0:00:40]} h5 {[%emt 0:01:51]} 54. Ke5 {[%emt 0:00:26]} Re2+ {[%emt 0:00:
00]} 55. Kd4 {[%emt 0:00:31]} h4 {[%emt 0:02:56]} 56. Rxh4 {[%emt 0:00:43]}
Rxf2 {[%emt 0:00:01]} 57. Ke3 {[%emt 0:00:35]} Rg2 {[%emt 0:02:05]} 58. Kf3 {
[%emt 0:00:01]} Rd2 {[%emt 0:00:01]} 59. Ra4 {[%emt 0:00:17]} Rd5 {[%emt 0:00:
00]} 60. Ke3 {[%emt 0:00:21]} Rb5 {[%emt 0:02:36]} 61. Kf2 {[%emt 0:00:36]} Kf6
{[%emt 0:00:34]} 62. Kf3 {[%emt 0:00:52]} Ke5 {[%emt 0:00:05]} 63. Ke3 {
[%emt 0:00:33]} Rb3+ {[%emt 0:00:45]} 64. Kf2 {[%emt 0:00:02]} Rb2+ {[%emt 0:
00:00]} 65. Kf3 {[%emt 0:00:27]} Rb5 {[%emt 0:00:35]} 66. Ke3 {[%emt 0:00:01]}
Rd5 {[%emt 0:00:57]} 67. Kf3 {[%emt 0:00:56]} Rc5 {[%emt 0:00:31]} 68. Ke3 {
[%emt 0:00:49]} Rb5 {[%emt 0:00:31]} 69. Kf3 {[%emt 0:00:34]} Rb3+ {[%emt 0:00:
00]} 70. Kf2 {[%emt 0:00:04]} Rb2+ {[%emt 0:00:04]} 71. Kf3 {[%emt 0:00:21]}
Rb5 {[%emt 0:00:18]} 1/2-1/2

[Event "44th Chess Olympiad Women 2022"]
[Site "Chennai"]
[Date "2022.07.31"]
[Round "3.32"]
[White "Misawa, Yuki"]
[Black "Mirza, Diana"]
[Result "0-1"]
[WhiteElo "1587"]
[BlackElo "1898"]
[Annotator "NA RC"]
[PlyCount "58"]
[EventDate "2022.??.??"]
[TimeControl "60"]

1. d4 {[%emt 0:00:03]} Nf6 {[%emt 0:00:07]} 2. c4 {[%emt 0:00:05]} c5 {[%emt 0:
00:00]} 3. Nf3 {[%emt 0:02:53]} cxd4 {[%emt 0:04:32]} 4. Nxd4 {[%emt 0:00:46]}
e5 {[%emt 0:00:11]} 5. Nf3 {[%emt 0:03:08]} Nc6 {[%emt 0:00:50]} 6. e3 {
[%emt 0:01:32]} d5 {[%emt 0:03:12]} 7. cxd5 {[%emt 0:06:15]} Nxd5 {[%emt 0:00:
00]} 8. Be2 {[%emt 0:03:18]} Bb4+ {[%emt 0:05:10]} 9. Bd2 {[%emt 0:10:54]} e4 {
[%emt 0:02:16]} 10. Ng1 {[%emt 0:03:37]} Qg5 {[%emt 0:04:22]} 11. g3 {[%emt 0:
00:00]} O-O {[%emt 0:01:05]} 12. Bxb4 {[%emt 0:04:38]} Ndxb4 {[%emt 0:02:17]}
13. Nc3 {[%emt 0:08:58]} Rd8 {[%emt 0:08:35]} 14. Qa4 {[%emt 0:03:50]} Bf5 {
[%emt 0:13:12]} 15. Bc4 {[%emt 0:09:12]} Nd3+ {[%emt 0:02:48]} 16. Kf1 {
[%emt 0:01:34]} Nce5 {[%emt 0:02:07]} 17. Bxd3 {[%emt 0:04:09]} exd3 {[%emt 0:
00:00]} 18. f4 {[%emt 0:01:17]} Qg4 {[%emt 0:12:37]} 19. fxe5 {[%emt 0:04:16]}
Qxa4 {[%emt 0:00:01]} 20. Nxa4 {[%emt 0:00:21]} Be4 {[%emt 0:00:02]} 21. Kf2 {
[%emt 0:04:59]} Bxh1 {[%emt 0:00:25]} 22. Nf3 {[%emt 0:00:35]} Bxf3 {[%emt 0:
00:00]} 23. Kxf3 {[%emt 0:00:22]} Rac8 {[%emt 0:03:56]} 24. Nc3 {[%emt 0:00:29]
} b5 {[%emt 0:00:37]} 25. a3 {[%emt 0:00:42]} a5 {[%emt 0:00:17]} 26. Ke4 {
[%emt 0:02:02]} Rc4+ {[%emt 0:01:32]} 27. Kf5 {[%emt 0:01:49]} g6+ {[%emt 0:00:
00]} 28. Kf6 {[%emt 0:01:54]} Re8 {[%emt 0:01:12]} 29. h3 {[%emt 0:05:58]} h6 {
[%emt 0:00:17]} 0-1